Workbook

Sheet Rent Roll - EST
E1: OVERLOOK AT LAKEWAY
E2: 3011 FLINTROCK
A4: Suite | B4: Rentable | C4: Tenant Name / Prospect | D4: LOI or Lease | E4: Base | F4: Base Rent | G4: Annual | H4: NNN | I4: Monthly Rent | J4: Annual | K4: Tenant | L4: Move In | M4: Lease
A5: # | B5: SqFt | E5: Rent | F5: per Sqft | G5: Base Rent | I5: Base + NNN | J5: Base + NNN | K5: Deposit | M5: Expiration
A6: 3rd Floor Suite #TBD | B6: 2380 | C6: VACANT | E6: =SUM(B6*F6)/12 -> 7140 | F6: 36 | G6: =SUM(E6*12) -> 85680 | H6: =SUM(B6*8.5)/12 -> 1685.833333 | I6: =SUM(E6+H6) -> 8825.833333 | J6: =SUM(I6*12) -> 105910 | K6: TBD | L6: TBD | M6: TBD
A7: 3rd Floor Suite #TBD | B7: 5262 | C7: COSMETIC DENTIST | D7: LOI | E7: 15786 | F7: 36 | G7: =SUM(E7*12) -> 189432 | H7: 3727.25 | I7: =SUM(E7+H7) -> 19513.25 | J7: =SUM(I7*12) -> 234159 | K7: TBD | L7: C of O | M7: 2032-10-30
A8: 3rd Floor Suite #TBD | B8: 4000 | C8: CAMPBELL - SURGEON | D8: LOI | E8: 11333.33333 | F8: 34 | G8: =SUM(E8*12) -> 136000 | H8: 2833.333333 | I8: =SUM(E8+H8) -> 14166.66667 | J8: =SUM(I8*12) -> 170000 | K8: TBD | L8: C of O | M8: 2035-09-30
A9: 3rd Floor Suite #TBD | B9: 2755 | C9: OVERLOOK MEDICAL SUITES | D9: LEASE | E9: 8265 | F9: 36 | G9: =SUM(E9*12) -> 99180 | H9: 1951.458333 | I9: =SUM(E9+H9) -> 10216.45833 | J9: =SUM(I9*12) -> 122597.5 | K9: 5000 | L9: C of O | M9: 2030-08-30
A10: 3rd Floor Suite #TBD | B10: 5075 | C10: STEWART TITLE | D10: LOI | E10: 14379.16667 | F10: 34 | G10: 172550 | H10: 3594.791667 | I10: 17973.95833 | J10: 215687.5 | K10: TBD | L10: C of O | M10: 2032-09-30
A11: 3rd Floor Suite #TBD | B11: 1012 | C11: LAKEWAY MGMT | D11: LEASE | E11: 3036 | F11: 36 | G11: =SUM(E11*12) -> 36432 | H11: 716.8333333 | I11: =SUM(E11+H11) -> 3752.833333 | J11: =SUM(I11*12) -> 45034 | K11: 2000 | L11: C of O | M11: 2030-08-30
A12: 3rd Floor Suite #TBD | B12: 1772 | C12: VACANT | E12: 5316 | F12: 36 | G12: 63792 | H12: 1255.166667 | I12: 6571.166667 | J12: 78854 | K12: TBD | L12: TBD | M12: TBD
A13: 4th Floor Suite #TBD | B13: 1547 | C13: VACANT | E13: 4641 | F13: 36 | G13: 55692 | H13: 1095.791667 | I13: 5736.791667 | J13: 68841.5 | K13: TBD | L13: TBD | M13: TBD
A14: 4th Floor Suite #TBD | B14: 2636 | C14: VACANT | E14: 7908 | F14: 36 | G14: 94896 | H14: 1867.166667 | I14: 9775.166667 | J14: 117302 | K14: TBD | L14: TBD | M14: TBD
A15: 4th Floor Suite #TBD | B15: 5075 | C15: VACANT | E15: 15225 | F15: 36 | G15: 182700 | H15: 3594.791667 | I15: 18819.79167 | J15: 225837.5 | K15: TBD | L15: TBD | M15: TBD
A16: 4th Floor Suite #TBD | B16: 12998 | C16: VACANT (SETON - ANCHOR) | E16: 38994 | F16: 36 | G16: 467928 | H16: 9206.916667 | I16: 48200.91667 | J16: 578411 | K16: TBD | L16: TBD | M16: TBD
A17: PARKING / CHARGE | E17: 3500 | G17: 42000 | I17: 42000 | J17: 42000
A18: TOTALS | B18: =SUM(B6:B16) -> 44512 | E18: =SUM(E6:E16) -> 132023.5 | G18: =SUM(G6:G17) -> 1626282 | H18: =SUM(H6:H16) -> 31529.33333 | I18: =SUM(I6:I17) -> 205552.8333 | J18: =SUM(J6:J17) -> 2004634
A21: NOTE: THE ABOVE IS A WORKING RENT ROLL DURING CONSTRUCTION AND MAY DIFFER UPON COMPLETION OF PROJECT, AND NOT GUARANTEED.
